[Event "Late-Titled-Tuesday-Blitz-March-05-2024"]
[Site "Chess.com"]
[Date "2024.03.05"]
[Round "10"]
[White "Eloist"]
[Black "BabageldiAnnaberdiyev"]
[Result "0-1"]
[WhiteElo "2436"]
[BlackElo "2613"]
[TimeControl "180+1"]
[EndTime "15:51:20 PST"]
[Termination "BabageldiAnnaberdiyev won on time"]

1. e4 {[%clk 0:02:58.3]} 1... e6 {[%clk 0:03:00.9]} 2. d4 {[%clk 0:02:57.3]}
2... d5 {[%clk 0:03:01.5]} 3. Nd2 {[%clk 0:02:54.1]} 3... Nf6 {[%clk 0:03:00.9]}
4. e5 {[%clk 0:02:53.6]} 4... Nfd7 {[%clk 0:03:01.5]} 5. Bd3 {[%clk 0:02:53.2]}
5... c5 {[%clk 0:03:02]} 6. c3 {[%clk 0:02:53.4]} 6... Nc6 {[%clk 0:03:02.7]} 7.
Ne2 {[%clk 0:02:53.5]} 7... cxd4 {[%clk 0:03:03.6]} 8. cxd4 {[%clk 0:02:53.5]}
8... Qb6 {[%clk 0:03:04.3]} 9. Nf3 {[%clk 0:02:50.7]} 9... f6 {[%clk 0:03:04.9]}
10. exf6 {[%clk 0:02:49.1]} 10... Nxf6 {[%clk 0:03:05.8]} 11. O-O {[%clk
0:02:48.8]} 11... Bd6 {[%clk 0:03:06.5]} 12. Rb1 {[%clk 0:02:37.5]} 12... O-O
{[%clk 0:03:03.9]} 13. b4 {[%clk 0:02:35.1]} 13... Bd7 {[%clk 0:02:56.1]} 14.
Be3 {[%clk 0:02:27.3]} 14... Rae8 {[%clk 0:02:49.7]} 15. Ne5 {[%clk 0:02:21.6]}
15... Qd8 {[%clk 0:02:49.1]} 16. Nxc6 {[%clk 0:02:11.6]} 16... bxc6 {[%clk
0:02:44.7]} 17. f4 {[%clk 0:02:06.2]} 17... Qe7 {[%clk 0:02:41.7]} 18. Qa4
{[%clk 0:01:58.7]} 18... Rb8 {[%clk 0:02:37.4]} 19. a3 {[%clk 0:01:55.5]} 19...
c5 {[%clk 0:02:35.2]} 20. b5 {[%clk 0:01:32.5]} 20... c4 {[%clk 0:02:35]} 21.
Bc2 {[%clk 0:01:30.3]} 21... Bxa3 {[%clk 0:02:27.3]} 22. Ra1 {[%clk 0:01:22]}
22... Bb2 {[%clk 0:02:19.6]} 23. Ra2 {[%clk 0:01:16.5]} 23... Bxb5 {[%clk
0:02:15.3]} 24. Qxa7 {[%clk 0:01:15.3]} 24... Qxa7 {[%clk 0:02:16.1]} 25. Rxa7
{[%clk 0:01:14.8]} 25... c3 {[%clk 0:02:17]} 26. Re1 {[%clk 0:01:11.7]} 26...
Ng4 {[%clk 0:02:08.2]} 27. Bf2 {[%clk 0:00:57.8]} 27... Nxf2 {[%clk 0:02:07.2]}
28. Kxf2 {[%clk 0:00:57.7]} 28... Bxe2 {[%clk 0:02:07.7]} 29. Kxe2 {[%clk
0:00:56.8]} 29... Rxf4 {[%clk 0:02:08.1]} 30. Ke3 {[%clk 0:00:54.7]} 30... Rbf8
{[%clk 0:02:05.9]} 31. Re7 {[%clk 0:00:51.7]} 31... Rf2 {[%clk 0:02:00.9]} 32.
Re2 {[%clk 0:00:46.9]} 32... Rxe2+ {[%clk 0:01:25.6]} 33. Kxe2 {[%clk
0:00:45.7]} 33... Rf6 {[%clk 0:01:23.3]} 34. g4 {[%clk 0:00:26.3]} 34... Bc1
{[%clk 0:01:17.5]} 35. h4 {[%clk 0:00:22.6]} 35... Rf4 {[%clk 0:01:12.3]} 36.
Rxe6 {[%clk 0:00:15]} 36... Rxd4 {[%clk 0:01:11.9]} 37. Kf3 {[%clk 0:00:09.7]}
37... Rd2 {[%clk 0:01:07.3]} 38. Re2 {[%clk 0:00:09.5]} 38... Rd4 {[%clk
0:00:54]} 39. Bb3 {[%clk 0:00:08]} 39... Kf8 {[%clk 0:00:51.7]} 40. Re5 {[%clk
0:00:07.6]} 40... Rf4+ {[%clk 0:00:50]} 41. Kg3 {[%clk 0:00:07.7]} 41... d4
{[%clk 0:00:49.2]} 42. Rd5 {[%clk 0:00:03.9]} 42... Be3 {[%clk 0:00:45.1]} 43.
Rd7 {[%clk 0:00:03.5]} 43... h6 {[%clk 0:00:42.3]} 44. Rd8+ {[%clk 0:00:01.5]}
44... Ke7 {[%clk 0:00:41.5]} 45. Rc8 {[%clk 0:00:01.5]} 45... Rf1 {[%clk
0:00:35]} 0-1

[Event "Late-Titled-Tuesday-Blitz-March-05-2024"]
[Site "Chess.com"]
[Date "2024.03.05"]
[Round "10"]
[White "Perecke"]
[Black "Abund"]
[Result "1-0"]
[WhiteElo "2583"]
[BlackElo "2788"]
[TimeControl "180+1"]
[EndTime "15:51:29 PST"]
[Termination "Perecke won on time"]

1. e4 {[%clk 0:03:00.9]} 1... g6 {[%clk 0:02:55.4]} 2. d4 {[%clk 0:03:00.7]}
2... Bg7 {[%clk 0:02:55.9]} 3. Nc3 {[%clk 0:03:00.6]} 3... d6 {[%clk 0:02:55.9]}
4. f4 {[%clk 0:03:00.8]} 4... a6 {[%clk 0:02:55]} 5. Nf3 {[%clk 0:02:57.3]} 5...
b5 {[%clk 0:02:55.3]} 6. Be3 {[%clk 0:02:56.4]} 6... Bb7 {[%clk 0:02:54.1]} 7.
Qd2 {[%clk 0:02:56.6]} 7... Nd7 {[%clk 0:02:53.1]} 8. O-O-O {[%clk 0:02:56.1]}
8... b4 {[%clk 0:02:45.4]} 9. Nd5 {[%clk 0:02:55.5]} 9... e6 {[%clk 0:02:45.1]}
10. Nxb4 {[%clk 0:02:53.2]} 10... a5 {[%clk 0:02:40.9]} 11. Nd3 {[%clk
0:02:51.8]} 11... Bxe4 {[%clk 0:02:41.2]} 12. h4 {[%clk 0:02:47.9]} 12... h5
{[%clk 0:02:34.4]} 13. Ng5 {[%clk 0:02:45.2]} 13... Bd5 {[%clk 0:02:33.1]} 14.
Nf2 {[%clk 0:02:42.2]} 14... Bxa2 {[%clk 0:02:20.5]} 15. Bd3 {[%clk 0:02:28.5]}
15... Ne7 {[%clk 0:02:14.8]} 16. b3 {[%clk 0:01:48.3]} 16... a4 {[%clk
0:02:14.5]} 17. Kb2 {[%clk 0:01:48]} 17... Qb8 {[%clk 0:02:03.7]} 18. b4 {[%clk
0:01:06.4]} 18... Bd5 {[%clk 0:01:57.9]} 19. c4 {[%clk 0:01:06.1]} 19... a3+
{[%clk 0:01:43.6]} 20. Ka2 {[%clk 0:01:05.1]} 20... Bc6 {[%clk 0:01:37.5]} 21.
Rhg1 {[%clk 0:00:55.9]} 21... Nf6 {[%clk 0:01:35.2]} 22. g4 {[%clk 0:00:54.8]}
22... Qb7 {[%clk 0:01:20.3]} 23. f5 {[%clk 0:00:44.9]} 23... exf5 {[%clk
0:01:03.2]} 24. gxf5 {[%clk 0:00:44.4]} 24... d5 {[%clk 0:00:44.1]} 25. fxg6
{[%clk 0:00:39.9]} 25... fxg6 {[%clk 0:00:36.1]} 26. Ne6 {[%clk 0:00:37.5]}
26... Bf8 {[%clk 0:00:33.8]} 27. Qc2 {[%clk 0:00:29.4]} 27... Rg8 {[%clk
0:00:26.9]} 28. Bxg6+ {[%clk 0:00:28.3]} 28... Nxg6 {[%clk 0:00:20.7]} 29. Rxg6
{[%clk 0:00:28.1]} 29... Ba4 {[%clk 0:00:16.9]} 30. Qf5 {[%clk 0:00:20]} 30...
Rxg6 {[%clk 0:00:05.3]} 31. Qxg6+ {[%clk 0:00:18.5]} 31... Ke7 {[%clk
0:00:05.8]} 32. Bg5 {[%clk 0:00:16.5]} 32... Qxb4 {[%clk 0:00:03.1]} 33. Qxf6+
{[%clk 0:00:16.3]} 33... Kd7 {[%clk 0:00:02.9]} 34. Qf7+ {[%clk 0:00:12.8]}
34... Kd6 {[%clk 0:00:01.3]} 35. c5+ {[%clk 0:00:09.2]} 35... Kc6 {[%clk
0:00:01.2]} 36. Qxc7+ {[%clk 0:00:09.4]} 36... Kb5 {[%clk 0:00:01.6]} 37. Rb1
{[%clk 0:00:09.6]} 1-0

[Event "Late-Titled-Tuesday-Blitz-March-05-2024"]
[Site "Chess.com"]
[Date "2024.03.05"]
[Round "10"]
[White "OrtizAnahi2001"]
[Black "picturesquecheck"]
[Result "1-0"]
[WhiteElo "2529"]
[BlackElo "2408"]
[TimeControl "180+1"]
[EndTime "15:51:29 PST"]
[Termination "OrtizAnahi2001 won by resignation"]

1. e4 {[%clk 0:03:00.9]} 1... c5 {[%clk 0:02:54.4]} 2. h3 {[%clk 0:02:58.4]}
2... Nc6 {[%clk 0:02:44.9]} 3. Nf3 {[%clk 0:02:58.4]} 3... g6 {[%clk 0:02:40.5]}
4. c3 {[%clk 0:02:57.9]} 4... d5 {[%clk 0:02:34.8]} 5. exd5 {[%clk 0:02:57.6]}
5... Qxd5 {[%clk 0:02:35.7]} 6. d4 {[%clk 0:02:58]} 6... cxd4 {[%clk 0:02:29.1]}
7. cxd4 {[%clk 0:02:58.2]} 7... Bg7 {[%clk 0:01:59.3]} 8. Nc3 {[%clk 0:02:56.5]}
8... Qd8 {[%clk 0:01:58.4]} 9. d5 {[%clk 0:02:54.6]} 9... Nb8 {[%clk 0:01:55.7]}
10. Bb5+ {[%clk 0:02:51.6]} 10... Bd7 {[%clk 0:01:54.9]} 11. Bc4 {[%clk
0:02:51.4]} 11... Nf6 {[%clk 0:01:54.4]} 12. O-O {[%clk 0:02:47]} 12... O-O
{[%clk 0:01:54.1]} 13. Re1 {[%clk 0:02:47.2]} 13... a6 {[%clk 0:01:49.5]} 14. a4
{[%clk 0:02:45.5]} 14... Bf5 {[%clk 0:01:45.4]} 15. Bg5 {[%clk 0:02:44.4]} 15...
h6 {[%clk 0:01:42.8]} 16. Bh4 {[%clk 0:02:42]} 16... Nbd7 {[%clk 0:01:39.7]} 17.
Nd4 {[%clk 0:02:36.5]} 17... Nb6 {[%clk 0:01:35.1]} 18. Nxf5 {[%clk 0:02:33.9]}
18... gxf5 {[%clk 0:01:28.4]} 19. Bb3 {[%clk 0:02:27.2]} 19... Rc8 {[%clk
0:01:23.1]} 20. Qf3 {[%clk 0:02:24.4]} 20... Qd7 {[%clk 0:01:10.3]} 21. Rad1
{[%clk 0:02:21.8]} 21... Rfe8 {[%clk 0:01:01.5]} 22. Bc2 {[%clk 0:02:20.6]}
22... Ne4 {[%clk 0:00:35.9]} 23. Nxe4 {[%clk 0:01:57.7]} 23... Rxc2 {[%clk
0:00:34.3]} 24. Ng3 {[%clk 0:01:57.7]} 24... f4 {[%clk 0:00:30.1]} 25. Qxf4
{[%clk 0:01:55.3]} 25... Qxa4 {[%clk 0:00:27.4]} 26. Qxa4 {[%clk 0:01:50.3]}
26... Nxa4 {[%clk 0:00:28.3]} 27. Bxe7 {[%clk 0:01:50.3]} 27... Nxb2 {[%clk
0:00:26.1]} 28. d6 {[%clk 0:01:42.5]} 28... Nxd1 {[%clk 0:00:20.5]} 29. d7
{[%clk 0:01:42.3]} 29... Ra8 {[%clk 0:00:20.7]} 30. Rxd1 {[%clk 0:01:37.4]}
30... a5 {[%clk 0:00:17.9]} 31. d8=Q+ {[%clk 0:01:32.7]} 31... Rxd8 {[%clk
0:00:18]} 32. Rxd8+ {[%clk 0:01:31.4]} 32... Kh7 {[%clk 0:00:18.2]} 33. Nf5
{[%clk 0:01:30.4]} 33... a4 {[%clk 0:00:16.6]} 34. Nxg7 {[%clk 0:01:16.5]} 34...
Kxg7 {[%clk 0:00:17.5]} 35. Rb8 {[%clk 0:01:16.7]} 35... Rc1+ {[%clk 0:00:15.8]}
36. Kh2 {[%clk 0:01:16.4]} 36... Rb1 {[%clk 0:00:16.7]} 37. Kg3 {[%clk
0:01:13.2]} 37... b5 {[%clk 0:00:16.9]} 38. f3 {[%clk 0:01:09.6]} 38... Rb3
{[%clk 0:00:16.3]} 39. Kf4 {[%clk 0:00:58.3]} 39... a3 {[%clk 0:00:15.1]} 40.
Bd6 {[%clk 0:00:51.7]} 40... Kg6 {[%clk 0:00:09.9]} 41. h4 {[%clk 0:00:48.6]}
41... h5 {[%clk 0:00:09.8]} 42. Be5 {[%clk 0:00:47]} 42... f6 {[%clk 0:00:09.4]}
43. Rb6 {[%clk 0:00:46.3]} 43... Rb4+ {[%clk 0:00:09]} 44. Ke3 {[%clk
0:00:45.5]} 44... Kf5 {[%clk 0:00:06.9]} 45. Bxf6 {[%clk 0:00:44.5]} 45... Rb3+
{[%clk 0:00:07.5]} 46. Kf2 {[%clk 0:00:44.2]} 46... a2 {[%clk 0:00:06.8]} 47.
Ra6 {[%clk 0:00:43.1]} 47... b4 {[%clk 0:00:03.9]} 48. Bh8 {[%clk 0:00:41.6]}
48... Ra3 {[%clk 0:00:02.9]} 49. Rxa3 {[%clk 0:00:40.2]} 49... bxa3 {[%clk
0:00:03.8]} 50. Ke3 {[%clk 0:00:40.5]} 50... Kg6 {[%clk 0:00:03.2]} 51. Ba1
{[%clk 0:00:40.4]} 51... Kf5 {[%clk 0:00:03.6]} 52. g3 {[%clk 0:00:39.2]} 52...
Kg6 {[%clk 0:00:04]} 53. Kf4 {[%clk 0:00:39.4]} 53... Kf7 {[%clk 0:00:03.8]} 54.
Kg5 {[%clk 0:00:39.6]} 1-0

[Event "Late-Titled-Tuesday-Blitz-March-05-2024"]
[Site "Chess.com"]
[Date "2024.03.05"]
[Round "10"]
[White "aceontheturn"]
[Black "tolimachess"]
[Result "1-0"]
[WhiteElo "2789"]
[BlackElo "2466"]
[TimeControl "180+1"]
[EndTime "15:51:31 PST"]
[Termination "aceontheturn won by checkmate"]

1. e4 {[%clk 0:02:34.8]} 1... c5 {[%clk 0:02:59]} 2. Nc3 {[%clk 0:02:35.3]} 2...
Nc6 {[%clk 0:02:56.8]} 3. Bb5 {[%clk 0:02:35.8]} 3... Nd4 {[%clk 0:02:55.2]} 4.
Bc4 {[%clk 0:02:36.3]} 4... g6 {[%clk 0:02:55.3]} 5. Nge2 {[%clk 0:02:36.7]}
5... Bg7 {[%clk 0:02:55.3]} 6. Nxd4 {[%clk 0:02:37.4]} 6... cxd4 {[%clk
0:02:54.4]} 7. Qf3 {[%clk 0:02:38.2]} 7... e6 {[%clk 0:02:50.1]} 8. Nb5 {[%clk
0:02:38.5]} 8... d6 {[%clk 0:02:48.5]} 9. Qa3 {[%clk 0:02:36.6]} 9... Bf8 {[%clk
0:02:42.5]} 10. Nxd4 {[%clk 0:02:34.9]} 10... Bd7 {[%clk 0:02:38.7]} 11. Nb5
{[%clk 0:01:53.8]} 11... d5 {[%clk 0:02:24.1]} 12. Qc3 {[%clk 0:01:53.1]} 12...
dxc4 {[%clk 0:02:24]} 13. Qxh8 {[%clk 0:01:51.4]} 13... Bxb5 {[%clk 0:02:19.9]}
14. Qxg8 {[%clk 0:01:51.3]} 14... Qg5 {[%clk 0:02:13.6]} 15. O-O {[%clk
0:01:47.3]} 15... h5 {[%clk 0:02:04.6]} 16. d4 {[%clk 0:01:41]} 16... Qf6 {[%clk
0:02:01.9]} 17. Bh6 {[%clk 0:01:38.2]} 17... Qe7 {[%clk 0:01:51]} 18. Bxf8
{[%clk 0:01:35.6]} 18... Qxf8 {[%clk 0:01:50.1]} 19. Qxf8+ {[%clk 0:01:36.5]}
19... Kxf8 {[%clk 0:01:51]} 20. c3 {[%clk 0:01:35.9]} 20... Bc6 {[%clk
0:01:50.2]} 21. f3 {[%clk 0:01:36.3]} 21... Rd8 {[%clk 0:01:49.3]} 22. Kf2
{[%clk 0:01:36.8]} 22... Ke7 {[%clk 0:01:49.4]} 23. Ke3 {[%clk 0:01:37.7]} 23...
f6 {[%clk 0:01:49.8]} 24. b3 {[%clk 0:01:31.7]} 24... Bb5 {[%clk 0:01:48.1]} 25.
Rfb1 {[%clk 0:01:32.1]} 25... b6 {[%clk 0:01:47.5]} 26. a4 {[%clk 0:01:32.6]}
26... Ba6 {[%clk 0:01:46.7]} 27. a5 {[%clk 0:01:31.2]} 27... b5 {[%clk
0:01:44.9]} 28. bxc4 {[%clk 0:01:31.5]} 28... bxc4 {[%clk 0:01:45.8]} 29. Rb4
{[%clk 0:01:28.6]} 29... Kd6 {[%clk 0:01:46]} 30. Rab1 {[%clk 0:01:28]} 30...
Kc7 {[%clk 0:01:46.6]} 31. h4 {[%clk 0:01:27.2]} 31... e5 {[%clk 0:01:43.8]} 32.
d5 {[%clk 0:01:24.4]} 32... f5 {[%clk 0:01:38.4]} 33. g3 {[%clk 0:01:15.8]}
33... Rf8 {[%clk 0:01:36.2]} 34. f4 {[%clk 0:01:09.7]} 34... exf4+ {[%clk
0:01:34.1]} 35. gxf4 {[%clk 0:01:10.6]} 35... fxe4 {[%clk 0:01:24.8]} 36. Kxe4
{[%clk 0:01:11.5]} 36... Kd6 {[%clk 0:01:20]} 37. Rg1 {[%clk 0:00:57.8]} 37...
Rf6 {[%clk 0:01:13.4]} 38. Rb8 {[%clk 0:00:58.4]} 38... Kc7 {[%clk 0:01:10.4]}
39. Rg8 {[%clk 0:00:56.5]} 39... Bc8 {[%clk 0:01:10.8]} 40. Kd4 {[%clk
0:00:39.7]} 40... Rxf4+ {[%clk 0:01:08.4]} 41. Kc5 {[%clk 0:00:40.4]} 41... Bf5
{[%clk 0:00:56.8]} 42. Rg7+ {[%clk 0:00:40.7]} 42... Kd8 {[%clk 0:00:48.6]} 43.
Re1 {[%clk 0:00:41.6]} 43... Rf3 {[%clk 0:00:40.8]} 44. Ree7 {[%clk 0:00:41.8]}
44... Rxc3 {[%clk 0:00:39.8]} 45. Rxa7 {[%clk 0:00:42.3]} 45... Re3 {[%clk
0:00:21]} 46. Ra8+ {[%clk 0:00:23.8]} 46... Bc8 {[%clk 0:00:20.3]} 47. a6 {[%clk
0:00:22.9]} 47... c3 {[%clk 0:00:19.1]} 48. a7 {[%clk 0:00:23.4]} 48... c2
{[%clk 0:00:10.2]} 49. Rxc8+ {[%clk 0:00:24.3]} 49... Kxc8 {[%clk 0:00:10]} 50.
a8=Q# {[%clk 0:00:25.2]} 1-0

[Event "Late-Titled-Tuesday-Blitz-March-05-2024"]
[Site "Chess.com"]
[Date "2024.03.05"]
[Round "10"]
[White "IMRosen"]
[Black "Irishchessman16"]
[Result "1-0"]
[WhiteElo "2662"]
[BlackElo "2526"]
[TimeControl "180+1"]
[EndTime "15:51:33 PST"]
[Termination "IMRosen won by checkmate"]

1. e4 {[%clk 0:03:00.9]} 1... c5 {[%clk 0:02:59.5]} 2. Nc3 {[%clk 0:03:00.5]}
2... e6 {[%clk 0:02:59.4]} 3. Nf3 {[%clk 0:03:00.4]} 3... a6 {[%clk 0:02:58.3]}
4. g3 {[%clk 0:03:00.6]} 4... b5 {[%clk 0:02:51.4]} 5. Bg2 {[%clk 0:03:00.9]}
5... Bb7 {[%clk 0:02:50.9]} 6. d4 {[%clk 0:03:01.5]} 6... cxd4 {[%clk
0:02:48.1]} 7. Nxd4 {[%clk 0:03:00.5]} 7... Nc6 {[%clk 0:02:48.7]} 8. Nxc6
{[%clk 0:02:59.4]} 8... Bxc6 {[%clk 0:02:49.6]} 9. O-O {[%clk 0:02:56.3]} 9...
Bb4 {[%clk 0:02:41.4]} 10. Qg4 {[%clk 0:02:41.1]} 10... Kf8 {[%clk 0:02:32.6]}
11. Nd5 {[%clk 0:02:25.7]} 11... Bd6 {[%clk 0:02:12.6]} 12. Bg5 {[%clk
0:02:03.9]} 12... f6 {[%clk 0:01:57.9]} 13. Bf4 {[%clk 0:02:04.1]} 13... Bxf4
{[%clk 0:01:51.8]} 14. Nxf4 {[%clk 0:02:04.2]} 14... Ne7 {[%clk 0:01:38]} 15.
Rad1 {[%clk 0:02:02.2]} 15... Qc7 {[%clk 0:01:34.6]} 16. Qxe6 {[%clk 0:01:38.2]}
16... dxe6 {[%clk 0:01:17.9]} 17. Nxe6+ {[%clk 0:01:38.3]} 17... Kf7 {[%clk
0:01:18.8]} 18. Nxc7 {[%clk 0:01:38.6]} 18... Ra7 {[%clk 0:01:15]} 19. Nd5
{[%clk 0:01:36.8]} 19... Bxd5 {[%clk 0:01:14.5]} 20. exd5 {[%clk 0:01:35.5]}
20... Nc8 {[%clk 0:01:13]} 21. Bh3 {[%clk 0:01:07.9]} 21... Nd6 {[%clk
0:01:12.2]} 22. Be6+ {[%clk 0:01:08]} 22... Kg6 {[%clk 0:01:09.3]} 23. Rd4
{[%clk 0:00:59.5]} 23... h5 {[%clk 0:01:02.4]} 24. c3 {[%clk 0:00:52.8]} 24...
Rc7 {[%clk 0:00:59.1]} 25. Kg2 {[%clk 0:00:49.5]} 25... Rb8 {[%clk 0:00:56.5]}
26. h4 {[%clk 0:00:46.1]} 26... a5 {[%clk 0:00:55.7]} 27. a3 {[%clk 0:00:44.9]}
27... Rb6 {[%clk 0:00:51.5]} 28. Re1 {[%clk 0:00:44.8]} 28... Nc4 {[%clk
0:00:50.8]} 29. Re2 {[%clk 0:00:42.2]} 29... b4 {[%clk 0:00:42.9]} 30. cxb4
{[%clk 0:00:39.9]} 30... axb4 {[%clk 0:00:41.6]} 31. axb4 {[%clk 0:00:35.6]}
31... Rxb4 {[%clk 0:00:37.8]} 32. d6 {[%clk 0:00:35.8]} 32... Rc6 {[%clk
0:00:26.5]} 33. Bxc4 {[%clk 0:00:26.5]} 33... Rbxc4 {[%clk 0:00:22.3]} 34. Rxc4
{[%clk 0:00:26.7]} 34... Rxc4 {[%clk 0:00:22.5]} 35. Rd2 {[%clk 0:00:27.1]}
35... Rc8 {[%clk 0:00:22.6]} 36. d7 {[%clk 0:00:26.4]} 36... Rd8 {[%clk
0:00:21.6]} 37. Kf3 {[%clk 0:00:27]} 37... Kf5 {[%clk 0:00:21.8]} 38. b4 {[%clk
0:00:24.5]} 38... Ke6 {[%clk 0:00:21.6]} 39. Kf4 {[%clk 0:00:23]} 39... g6
{[%clk 0:00:21.7]} 40. g4 {[%clk 0:00:19.3]} 40... hxg4 {[%clk 0:00:17.4]} 41.
Kxg4 {[%clk 0:00:20.2]} 41... Rxd7 {[%clk 0:00:17.6]} 42. Rxd7 {[%clk 0:00:20]}
42... Kxd7 {[%clk 0:00:18.2]} 43. h5 {[%clk 0:00:20.4]} 43... gxh5+ {[%clk
0:00:17.4]} 44. Kxh5 {[%clk 0:00:21.3]} 44... Kc6 {[%clk 0:00:17.7]} 45. Kg6
{[%clk 0:00:21.6]} 45... Kb5 {[%clk 0:00:18.6]} 46. Kxf6 {[%clk 0:00:22]} 46...
Kxb4 {[%clk 0:00:19.5]} 47. Ke5 {[%clk 0:00:22.5]} 47... Kc4 {[%clk 0:00:20.3]}
48. f4 {[%clk 0:00:23.1]} 48... Kc5 {[%clk 0:00:20.9]} 49. f5 {[%clk 0:00:23.5]}
49... Kc6 {[%clk 0:00:21.8]} 50. Ke6 {[%clk 0:00:24.3]} 50... Kc7 {[%clk
0:00:21.8]} 51. Ke7 {[%clk 0:00:24.9]} 51... Kc6 {[%clk 0:00:22.1]} 52. f6
{[%clk 0:00:25.8]} 52... Kd5 {[%clk 0:00:22.8]} 53. f7 {[%clk 0:00:26.7]} 53...
Ke5 {[%clk 0:00:23.4]} 54. f8=Q {[%clk 0:00:27.6]} 54... Ke4 {[%clk 0:00:23.8]}
55. Ke6 {[%clk 0:00:24.7]} 55... Kd4 {[%clk 0:00:24.7]} 56. Qf5 {[%clk 0:00:24]}
56... Ke3 {[%clk 0:00:24.6]} 57. Qg4 {[%clk 0:00:24.2]} 57... Kd3 {[%clk
0:00:25.4]} 58. Kd5 {[%clk 0:00:23.9]} 58... Kc2 {[%clk 0:00:26.2]} 59. Kc4
{[%clk 0:00:23.5]} 59... Kb1 {[%clk 0:00:27.1]} 60. Kb3 {[%clk 0:00:21.5]} 60...
Ka1 {[%clk 0:00:28]} 61. Qg1# {[%clk 0:00:21.1]} 1-0

[Event "Late-Titled-Tuesday-Blitz-March-05-2024"]
[Site "Chess.com"]
[Date "2024.03.05"]
[Round "10"]
[White "MagnusCarlsen"]
[Black "DanielNaroditsky"]
[Result "1/2-1/2"]
[WhiteElo "3246"]
[BlackElo "3098"]
[TimeControl "180+1"]
[EndTime "15:51:34 PST"]
[Termination "Game drawn by agreement"]

1. e4 {[%clk 0:03:00.9]} 1... c5 {[%clk 0:02:55.9]} 2. Nf3 {[%clk 0:02:53.1]}
2... Nf6 {[%clk 0:02:55.3]} 3. e5 {[%clk 0:02:48.9]} 3... Nd5 {[%clk 0:02:55]}
4. Nc3 {[%clk 0:02:49.7]} 4... e6 {[%clk 0:02:55.4]} 5. Nxd5 {[%clk 0:02:49.6]}
5... exd5 {[%clk 0:02:56.3]} 6. d4 {[%clk 0:02:50]} 6... Nc6 {[%clk 0:02:57.1]}
7. dxc5 {[%clk 0:02:44.3]} 7... Bxc5 {[%clk 0:02:58]} 8. Qxd5 {[%clk 0:02:44.3]}
8... d6 {[%clk 0:02:57.2]} 9. exd6 {[%clk 0:02:45.2]} 9... Qb6 {[%clk
0:02:57.6]} 10. Qe4+ {[%clk 0:02:45.8]} 10... Be6 {[%clk 0:02:58.4]} 11. Qh4
{[%clk 0:02:46.2]} 11... Bxd6 {[%clk 0:02:48.7]} 12. c3 {[%clk 0:02:44.1]} 12...
Rd8 {[%clk 0:01:59.4]} 13. Be2 {[%clk 0:02:36.5]} 13... O-O {[%clk 0:01:54.6]}
14. O-O {[%clk 0:02:36]} 14... Rfe8 {[%clk 0:01:42.1]} 15. Bc4 {[%clk
0:01:22.8]} 15... Be7 {[%clk 0:00:49.6]} 16. Qe4 {[%clk 0:00:43.2]} 16... Bc5
{[%clk 0:00:45.5]} 17. Bg5 {[%clk 0:00:35.3]} 17... Bxc4 {[%clk 0:00:10.5]} 18.
Qxc4 {[%clk 0:00:34.7]} 18... Rc8 {[%clk 0:00:10.3]} 19. Qb3 {[%clk 0:00:32.3]}
19... Qa6 {[%clk 0:00:08.2]} 20. Bh4 {[%clk 0:00:30.5]} 20... h6 {[%clk
0:00:06.6]} 21. Rad1 {[%clk 0:00:23.9]} 21... Re2 {[%clk 0:00:06.3]} 22. Rd7
{[%clk 0:00:23.8]} 22... Rf8 {[%clk 0:00:05.5]} 23. Qxb7 {[%clk 0:00:21.8]}
23... Qa4 {[%clk 0:00:03.1]} 24. Bg3 {[%clk 0:00:20.4]} 24... Na5 {[%clk
0:00:02.1]} 25. Qd5 {[%clk 0:00:20.1]} 25... Bb6 {[%clk 0:00:02.3]} 26. Ne5
{[%clk 0:00:18.2]} 26... Qe4 {[%clk 0:00:02.1]} 27. Qxe4 {[%clk 0:00:17.7]}
27... Rxe4 {[%clk 0:00:03]} 28. Rd2 {[%clk 0:00:17.6]} 28... Re8 {[%clk
0:00:03.1]} 29. b4 {[%clk 0:00:11.9]} 29... Nc4 {[%clk 0:00:02.7]} 30. Nxc4
{[%clk 0:00:11.8]} 30... Rxc4 {[%clk 0:00:03.6]} 31. Rd3 {[%clk 0:00:12.1]}
31... Re2 {[%clk 0:00:04]} 32. a4 {[%clk 0:00:11.6]} 32... a5 {[%clk 0:00:03]}
33. Rd6 {[%clk 0:00:10.1]} 33... Bc7 {[%clk 0:00:03.6]} 34. Rd4 {[%clk
0:00:10.6]} 34... Rxd4 {[%clk 0:00:02.8]} 35. cxd4 {[%clk 0:00:10.9]} 35... Bxg3
{[%clk 0:00:03.6]} 36. hxg3 {[%clk 0:00:11.7]} 36... Ra2 {[%clk 0:00:02.8]} 37.
b5 {[%clk 0:00:09.7]} 37... Rxa4 {[%clk 0:00:03.4]} 38. Rb1 {[%clk 0:00:10.2]}
38... Rxd4 {[%clk 0:00:03.3]} 39. b6 {[%clk 0:00:08.1]} 39... Rd8 {[%clk
0:00:02.9]} 40. Kf1 {[%clk 0:00:08.6]} 40... Rb8 {[%clk 0:00:03.2]} 41. Ke2
{[%clk 0:00:09.3]} 41... a4 {[%clk 0:00:03.9]} 42. Kd3 {[%clk 0:00:06.9]} 42...
a3 {[%clk 0:00:04.6]} 43. Ra1 {[%clk 0:00:06.9]} 43... Rxb6 {[%clk 0:00:04.6]}
44. Rxa3 {[%clk 0:00:07.7]} 44... Re6 {[%clk 0:00:05.3]} 1/2-1/2